Cogmind - Beta 9.1 *** ADVENTURER MODE // 2019.11.09 @ 13:46:42 Player: Tenebrous Result: Destroyed by Y-45 Defender with Beam Rifle Performance ------------- Evolutions (1) 500 Regions Visited (2) 400 Robots Destroyed (30) 150 Value Destroyed (848) 848 Prototype IDs (0) 0 Alien Tech Used (0) 0 Bonus (0) 0 TOTAL SCORE: 1898 Bonus ------- None Cogmind --------- Core Integrity 0/400 Matter 108/300 Energy 84/100 System Corruption 1% Temperature Cool (24) Location -9/Materials Parts ------- Power (1) Propulsion (3) Utility (3) High-capacity Storage Unit Targeting Computer Weapon (2) Particle Gun Mining Claw Inventory (12) Ion Engine Medium Storage Unit Signal Interpreter Small Laser Grenade Launcher Peak State ------------ Power Light Ion Engine Propulsion Wheel Wheel Wheel Utility High-capacity Storage Unit Structural Scanner Targeting Computer Weapon Light Assault Rifle Grenade Launcher Inventory Ion Engine Ion Engine Wheel Medium Storage Unit Signal Interpreter Small Laser Particle Gun Beam Cannon Mining Claw [Rating: 10] Favorites ----------- Power Light Ion Engine Engine Light Ion Engine Propulsion Wheel Wheel Wheel Utility Targeting Computer Device Structural Scanner Storage High-capacity Storage Unit Processor Targeting Computer Weapon Grenade Launcher Energy Gun Medium Laser Energy Cannon Beam Cannon Ballistic Gun Light Assault Rifle Launcher Grenade Launcher Slashing Weapon Mining Claw Build | -11 -10 -9 ------- Run | Scr Mat Mat Slots Evolved 2 | . . 2 Power . | . . . Propulsion 1 | . . 1 Utility 1 | . . 1 Weapon . | . . . Parts Attached 29 | 6 11 12 Power 4 | 1 2 1 Engine 4 | 1 2 1 Core . | . . . Reactor . | . . . Propulsion 6 | 2 2 2 Treads . | . . . Leg . | . . . Wheel 6 | 2 2 2 Hover . | . . . Flight . | . . . Utility 5 | 1 3 1 Device 1 | . . 1 Storage 3 | 1 2 . Processor 1 | . 1 . Hackware . | . . . Protection . | . . . Artifact . | . . . Weapon 14 | 2 4 8 Energy Gun 3 | 1 1 1 Energy Cannon 1 | . . 1 Ballistic Gun 4 | 1 1 2 Ballistic Cannon . | . . . Launcher 3 | . 2 1 Special Weapon . | . . . Impact Weapon . | . . . Slashing Weapon 3 | . . 3 Piercing Weapon . | . . . Special Melee Weapon . | . . . Unidentified Prototypes . | . . . Parts Lost 14 | . 4 10 Power 2 | . . 2 Propulsion 5 | . 1 4 Utility 1 | . . 1 Weapon 6 | . 3 3 Highest Loss Streak 7 | . 1 7 Average Slot Usage (%) 87 | . 88 87 Engine 11 | . 14 7 Wheel 23 | . 21 28 Device 3 | . . 10 Storage 13 | . 14 11 Processor 10 | . 10 11 Energy Gun 8 | . 12 . Ballistic Gun 5 | . 4 7 Launcher 8 | . 10 4 Slashing Weapon 1 | . . 5 Naked Turns . | . . . Heaviest Build 43 | 9 40 43 Greatest Support 32 | 32 32 30 Greatest Overweight (x) 12 | 1 1 12 Average Overweight (x) . | . . 1 Largest Inventory Capacity 12 | 6 12 12 Average Capacity 8 | 5 7 12 Most Carried 10 | 4 10 10 Average Carried 5 | 2 5 7 Final Capacity 12 | 6 12 12 Final Carried 10 | 3 10 5 Class Distribution -------------------- 100% | Mutant Dominant Class ---------------- Mutant | -10/Materials Mutant | -9/Materials Resources | -11 -10 -9 ----------- Run | Scr Mat Mat Matter Collected 622 | 210 175 237 Remotely . | . . . Salvage Created 627 | . 347 280 Parts 52 | . 36 16 Haulers Intercepted . | . . . Recyclers Shooed . | . . . Parts Field Recycled . | . . . Retrieved Matter . | . . . Parts Self-Destructed . | . . . Prevented . | . . . Kills | -11 -10 -9 ------- Run | Scr Mat Mat Combat Hostiles Destroyed 24 | . 16 8 Melee 2 | . . 2 Guns 8 | . 5 3 AOE 14 | . 11 3 Classes Destroyed 6 | . 4 2 Worker 1 | . . 1 Builder 1 | . 1 . Watcher 4 | . 3 1 Swarmer 6 | . 6 . Grunt 17 | . 10 7 Sentry 1 | . . 1 Best Kill Streak 6 | . 6 4 Combat Bots Only 5 | . 5 3 Max Kills in Single Turn 3 | . 3 2 Gunslinging . | . . . Exploded 2 | . 2 2 Melee 1 | . . 1 Uniques/NPCs Destroyed . | . . . Combat | -11 -10 -9 -------- Run | Scr Mat Mat Damage Taken 1701 | . 572 1129 Core 565 | . 163 402 Absorbed by Shields . | . . . Core Remaining (%) 67 | 100 34 . Volleys Fired 85 | . 49 36 Largest 2 | . 2 2 Hottest 90 | . 80 90 Shots Fired 130 | . 81 49 Gun 96 | . 57 39 Cannon 4 | . . 4 Launcher 30 | . 24 6 Special . | . . . Kinetic 57 | . 24 33 Thermal 43 | . 33 10 Explosive 30 | . 24 6 Electromagnetic . | . . . Robot Hit Streak 23 | . 23 20 Robot Miss Streak 1 | . 1 1 Penetration Max . | . . . Secondary Targets 1 | . 1 . Max Gunslinging Chain 1 | . 1 . Shots Hit Robots 98 | . 50 48 Core Hits 56 | . 37 19 Critical Hits . | . . . Critical Kills . | . . . Critical Parts Destroyed . | . . . Melee Attacks 4 | . . 4 Impact . | . . . Slashing 4 | . . 4 Piercing . | . . . Sneak Attacks 1 | . . 1 Combat Hostiles . | . . . Follow-up Attacks . | . . . Damage Inflicted 2674 | . 1510 1164 Guns 896 | . 444 452 Cannons 52 | . . 52 Explosions 1516 | . 1066 450 Melee 164 | . . 164 Ramming 46 | . . 46 Kinetic 518 | . 162 356 Thermal 430 | . 282 148 Explosive 1516 | . 1066 450 Electromagnetic . | . . . Impact . | . . . Slashing 164 | . . 164 Piercing . | . . . Highest Corruption 1 | . . 1 Average Corruption 1 | . . 1 Corruption Purged . | . . . Effects 2 | . . 2 Message Errors 2 | . . 2 Overload Shots . | . . . Overflow Damage 148 | . 18 130 Projectiles . | . . . Explosions 62 | . 18 44 Melee 86 | . . 86 Knockbacks . | . . . Impact . | . . . Kinetic . | . . . Secondary . | . . . Self-Inflicted Damage 151 | . 68 83 Shots 8 | . 3 5 Rammed 7 | . . 7 Targets Rammed 7 | . . 7 Kicked . | . . . Crushed . | . . . Highest Temperature 151 | . 151 99 Average Temperature 51 | . 58 34 Received Heat Transfer 909 | . 285 624 Siege Activations . | . . . Robots Corrupted . | . . . Combat Hostiles . | . . . Parts Fried . | . . . Impact Corruptions 1 | . . 1 Robots Melted . | . . . Combat Hostiles . | . . . Parts Melted 2 | . 1 1 Heat Transferred 1078 | . 745 333 Parts Sabotaged . | . . . Parts Stolen . | . . . Parts Stripped . | . . . Power Chain Reactions . | . . . Missiles Intercepted . | . . . Alert | -11 -10 -9 ------- Run | Scr Mat Mat Peak Influence 272 | . 144 272 Average Influence 113 | . 95 170 Maximum Alert Level 1 | . . 1 Low Security (%) 82 | . . . Level 1 17 | . . . Level 2 . | . . . Level 3 . | . . . Level 4 . | . . . Level 5 . | . . . High Security . | . . . Max Security . | . . . Squads Dispatched 3 | . 1 2 Investigation 1 | . 1 . Extermination . | . . . Reinforcement 2 | . . 2 Assault . | . . . Garrison . | . . . Intercept . | . . . Construction Impeded . | . . . Haulers Reinforced . | . . . Stealth | -11 -10 -9 --------- Run | Scr Mat Mat Distress Signals 1 | . . 1 Communications Jammed . | . . . Distress Signals . | . . . Times Spotted 38 | . 21 17 Peak Tracking Total 6 | . 4 6 Tactical Retreats . | . . . Traps | -11 -10 -9 ------- Run | Scr Mat Mat Traps Triggered 1 | . 1 . Indirectly . | . . . Trap Hack Attempts . | . . . Triggered . | . . . Disarmed . | . . . Reprogrammed . | . . . Reused . | . . . Traps Extracted . | . . . Installed . | . . . Triggered . | . . . Machines | -11 -10 -9 ---------- Run | Scr Mat Mat Machines Disabled 3 | . 2 1 Max in Single Turn 1 | . 1 1 Machines Sabotaged . | . . . Garrisons Compromised . | . . . Overloaded Fab Kills . | . . . Fab Network Shutdowns . | . . . Hacking | -11 -10 -9 --------- Run | Scr Mat Mat Machines Accessed 5 | . 3 2 Terminals 2 | . 2 . Fabricators . | . . . Repair Stations 2 | . . 2 Recycling Units 1 | . 1 . Scanalyzers . | . . . Garrison Access . | . . . Total Hacks 11 | . 7 4 Successful 9 | . 5 4 Failed 2 | . 2 . Catastrophic . | . . . Database Lockouts . | . . . Manual . | . . . Terminals 3 | . 3 . Fabricators . | . . . Repair Stations 4 | . . 4 Recycling Units 4 | . 4 . Scanalyzers . | . . . Garrison Access . | . . . Terminal Hacks 3 | . 3 . Alert Level 1 | . 1 . Maintenance Status 1 | . 1 . Hauler Manifests 1 | . 1 . Fabricator Hacks . | . . . Repair Station Hacks 4 | . . 4 Scan Component 2 | . . 2 Repair 2 | . . 2 Recycling Unit Hacks 2 | . 2 . Report Inventory 1 | . 1 . Retrieve Components 1 | . 1 . Scanalyzer . | . . . Garrison Access Hacks . | . . . Unauthorized Hacks . | . . . Terminals . | . . . Fabricators . | . . . Repair Stations . | . . . Recycling Units . | . . . Scanalyzers . | . . . Garrison Access . | . . . Data Cores Recovered . | . . . Used . | . . . Hacking Detections 3 | . 1 2 Full Trace Events . | . . . Feedback Events . | . . . Feedback Blocked . | . . . Robot Schematics Acquired . | . . . Robots Built . | . . . Matter . | . . . Time . | . . . Total Robot Build Rating . | . . . Part Schematics Acquired . | . . . Parts Built . | . . . Matter . | . . . Time . | . . . Total Part Build Rating . | . . . Parts Repaired 2 | . . 2 Time 52 | . . 52 Parts Recycled . | . . . Recycled Matter . | . . . Retrieved Matter . | . . . Retrieved Components 10 | . 10 . Parts Scanalyzed . | . . . Part Schematics Acquired . | . . . Parts Damaged . | . . . Bothacking | -11 -10 -9 ------------ Run | Scr Mat Mat Used RIF Installer . | . . . Robots Hacked . | . . . Non-combat . | . . . Combat . | . . . Robot Hacks Applied . | . . . Relay Couplers Released . | . . . Robots Rewired . | . . . Allies Hacked . | . . . Hacks Repelled . | . . . Allies | -11 -10 -9 -------- Run | Scr Mat Mat Total Allies . | . . . Largest Group . | . . . Highest-Rated Group . | . . . Highest-Rated Ally . | . . . Total Orders . | . . . Ally Attacks . | . . . Total Damage . | . . . Kills . | . . . Allies Corrupted . | . . . Allies Melted . | . . . Intel | -11 -10 -9 ------- Run | Scr Mat Mat Robot Analysis Total . | . . . Derelict Logs Recovered . | . . . Drone Launches . | . . . Drone Recoveries . | . . . Exploration | -11 -10 -9 ------------- Run | Scr Mat Mat Turns Passed 1341 | 62 879 400 Spaces Moved 956 | 48 700 208 Core 20 | 17 . 3 Treads . | . . . Legs . | . . . Wheels 936 | 31 700 205 Hover . | . . . Flight . | . . . Fastest Speed 50 | 50 80 90 Average Speed 96 | 90 96 97 Slowest Speed 650 | 100 100 650 Overloaded Moves . | . . . Propulsion Burnouts . | . . . Robots Hopped . | . . . Cave-ins Triggered . | . . . Exploration Rate (%) 40 | 3 98 20 Regions Visited 2 Branch Regions . Pre-discovered Areas . | . . . Known Exits Taken . | . . . Unknown Exits Taken 2 | 1 1 . Scrap Searched . | . . . Spaces Dug . | . . . Terrain Destroyed 127 | . 86 41 Melee . | . . . Projectile . | . . . AOE 127 | . 86 41 Actions | -11 -10 -9 --------- Run | Scr Mat Mat Total 1247 | 65 825 357 Wait 135 | 6 43 86 Move 954 | 47 699 208 Hop . | . . . Pick Up 26 | 6 16 4 Fast Attach 4 | 3 1 . Attach 15 | 3 4 8 Detach . | . . . Swap 10 | . 6 4 Drop 7 | . 7 . Fire 85 | . 49 36 Melee 4 | . . 4 Ram 7 | . . 7 Kick . | . . . Crush . | . . . Escape Stasis . | . . . Rewire . | . . . Trap . | . . . Miscellaneous . | . . . Route ------- -11/Scrapyard -10/Materials (discovered 5 exits: *Mat x3 / [*Min x2]) -9/Materials (discovered 1 exit: [*Sto]) History --------- Turn | Location | Event 5 | -11/Scrapyard | Discovered new exit (range 16) 63 | -11/Scrapyard | Entered Materials 311 | -10/Materials | Build established: Mutant 358 | -10/Materials | Discovered new exit (range 7) 434 | -10/Materials | Discovered new exit (range 3) 512 | -10/Materials | Discovered new exit (range 7) 551 | -10/Materials | Core integrity fell below 50% 788 | -10/Materials | Discovered new exit (range 10) 861 | -10/Materials | Discovered new exit (range 15) 942 | -10/Materials | Entered another Materials area 942 | -9/Materials | Evolved 2 slots: Propulsion x1, Utility x1 1021 | -9/Materials | Repaired Grenade Launcher 1113 | -9/Materials | Discovered new exit (range 9) 1207 | -9/Materials | Repaired Lgt. Assault Rifle 1297 | -9/Materials | Core integrity fell below 50% 1321 | -9/Materials | Core integrity fell below 20% 1342 | -9/Materials | Destroyed by Y-45 Defender with Beam Rifle Last Messages --------------- 01310_ Structural Scanner destroyed. 01312_ K-01 Serf collects debris. 01313_ Door malfunctions. 01314_ K-01 Serf collects debris. 01314_ Acquired 50 matter. 01316_ K-01 Serf cleans the Recycling Unit. 01318_ Lgt. Assault Rifle destroyed. 01319_ K-01 Serf cleans the Recycling Unit. 01328_ R-06 Scavenger inserts Sml. Laser into recycling unit. 01329_ K-01 Serf cleans the Recycling Unit. 01331_ R-06 Scavenger inserts Ion Engine into recycling unit. 01333_ K-01 Serf cleans the Recycling Unit. 01334_ R-06 Scavenger inserts Sml. Laser into recycling unit. 01335_ Lgt. Nuclear Core melted. 01335_ G-47 Trooper destroyed. 01336_ K-01 Serf collects debris. 01336_ K-01 Serf cleans the Recycling Unit. 01337_ R-06 Scavenger inserts Wheel into recycling unit. 01337_ G-34 Mercenary destroyed. 01339_ K-01 Serf collects debris. Map ----- +----------------------------------------------------+ | ?????????????????????????????????????????? | | ?????????????????????????????????????????? | | ###??????????????????????????????????????????????? | | ?????????????????????????????????????????????????? | | ?????????????????????????????????????????????????? | | ?????????????????????????????????????????????????? | | ?????????????????????????????????????????????????? | | ?????????????????????????????????????????????????? | | ?????????????????????????????????????????????????? | | ?????????????????????????????????????????????????? | | #######??????????????????????????????????????????? | | #??????????????????????????????????????????? | | #??????????????????????????????????????????? | | #??????????????????????????????????????????? | | #????????????# ???????????????????????????? | | #????????????# ???????????????????????????? | | #????????????# ???????????????????????????? | | #????????????# ??????????????????????????? | | #????????????# ??????????????????????????? | | ### #??????????#?# #?????????????????????????? | | ??# #????????? #?# ?????????????????????????? | | ??# #????????? #?? ?????????????????????????? | | ??# #????????? ##?? ?????????????????????????? | | ??# #????????? #####/####?????????????????????? | | ??## ######???? ## k #?????????????????????? | | ???# #??? < ## """%@##?????????????????????? | | ???# """ #?? ## "Y"%=#??????????????????????? | | ???# """ #?? ?# " "Y #??????????????????????? | | ???# """ #??# #?# k #??????????????????????? | | ???# #??# #?# r!!#??????????????????????? | | ???# !#??# #?# !! #??????????????????????? | | ???####+###### #?# !! #??????????????????????? | | ?????# #?#w #??????????????????????? | | ###### #?# "" #??????????????????????? | | + #?# "" #??????????????????????? | | # #?# """ !#??????????????????????? | | ?# #?# #??????????????????????? | | ?# #?###/##+## #???????????????????? | | ?# ##### #???????????????????? | | ?+ #???????????????????? | | ?######+### #############???????????????????? | | ???# + #???????????????????????????????? | | ???# """ #####+#####????????????????????????????? | | ???# "T" # #????????????????????????????? | | ???# # #????????????????????????????? | | ???# # #????????????????????????????? | | ???# # """"""" #????????????????????????????? | | ???######## """"""" #????????????????????????????? | | ########### """"""" #????????????????????????????? | | + """"""" #????????????????????????????? | +----------------------------------------------------+ Best States ------------- Heat Dissipation 28 Energy Generation 10 Energy Capacity 250 Matter Stores 300 Matter Capacity 300 Sight Range 16 Terrain Scan Density 10 Resistance: KI 20 Resistance: TH 20 Resistance: EX 20 Resistance: EM 20 Resistance: I 20 Resistance: S 20 Resistance: P 20 Evasion (%) 50 Targeting Accuracy 5 Item Schematics ----------------- None Robot Schematics ------------------ None Fabricated ------------ Nothing Alien Tech Used ----------------- None Achievements -------------- None Challenges ------------ None Game ------ Seed ElectronGatlingDatajack Manual? 0 Play Time 00:20:59 Cumulative 23.2 hours Start 2019.11.09 @ 13:24:57 End 2019.11.09 @ 13:46:42 Sessions 1 Manual Loads 0 Difficulty Adventurer Special Mode None Game No. 76 Rogue 46 Adventurer 15 Explorer 7 Win Type - Total 0 Types 0/0/0/0/0/0/0 Lore% 4 Gallery% 21 Achievement% 9 Wizard Run 0 Options --------- ASCII 0 Keyboard 0 Movement Mouse Keybinds 0 Fullscreen 1 Font 18/X11 Map View 76x50 Tactical HUD 1 Map Filters NONE Filters NONE Steam 1 RUN: e9807d55-b482-42db-9b81-90c9b4c8ae01